bitfinex-derivatives/quotes_BTCF0:USTF0_20260221
["timestamp","ask_amount","ask_price","bid_price","bid_amount"]
[1771692972419,0.01463,68371.0,68364.0,0.014631]
[1771692972724,0.17223092,68370.0,68364.0,0.014631]
[1771692972918,0.014631,68369.0,68364.0,0.014631]
[1771692973123,0.029262,68369.0,68364.0,0.014631]
[1771692973524,0.014631,68368.0,68364.0,0.014631]
[1771692974125,0.014631,68368.0,68363.0,0.24352896]
[1771692974917,0.014631,68369.0,68363.0,0.24352896]
[1771692975126,0.014631,68367.0,68363.0,0.22889696]
[1771692975526,0.014631,68369.0,68362.0,0.029264]
[1771692975720,0.014631,68368.0,68362.0,0.029264]
[1771692975921,0.014631,68369.0,68362.0,0.029264]
[1771692976126,0.014631,68367.0,68361.0,0.014632]
[1771692976326,0.014631,68366.0,68361.0,0.014632]
[1771692978126,0.014631,68366.0,68362.0,0.014632]
[1771692978523,0.01463,68370.0,68362.0,0.014632]
[1771692978827,0.014631,68367.0,68362.0,0.014632]
[1771692979820,0.01463,68370.0,68364.0,0.014631]
[1771692980127,0.01463,68372.0,68364.0,0.014631]
[1771692980324,0.014631,68369.0,68364.0,0.014631]
[1771692980626,0.01463,68372.0,68364.0,0.014631]
[1771692981027,0.014631,68369.0,68364.0,0.014631]
[1771692981223,0.01463,68372.0,68364.0,0.014631]
[1771692981428,0.014629,68377.0,68364.0,0.014631]
[1771692982128,0.014629,68377.0,68363.0,0.014632]
[1771692982725,0.014629,68377.0,68364.0,0.001]
[1771692984624,0.21778532,68376.0,68363.0,0.014632]
[1771692984830,0.21778532,68375.0,68363.0,0.015632]
[1771692985032,0.014629,68377.0,68363.0,0.015632]
[1771692985232,0.21779089,68376.0,68364.0,0.001]
[1771692985430,0.21779089,68375.0,68364.0,0.001]
[1771692985620,0.014629,68377.0,68364.0,0.001]
[1771692985824,0.21779171,68376.0,68363.0,0.015632]
[1771692986035,0.014629,68377.0,68363.0,0.015632]
[1771692986036,0.21779171,68375.0,68363.0,0.015632]
[1771692986233,0.014629,68377.0,68363.0,0.015632]
[1771692986427,0.21779905,68376.0,68363.0,0.015632]
[1771692986626,0.21779905,68375.0,68363.0,0.015632]
[1771692986827,0.014629,68377.0,68363.0,0.015632]
[1771692987130,0.21779905,68376.0,68364.0,0.014631]
[1771692987331,0.21779905,68375.0,68364.0,0.015631]
[1771692987633,0.014629,68377.0,68364.0,0.015631]
[1771692987830,0.21779589,68376.0,68363.0,0.015632]
[1771692988029,0.21779589,68375.0,68363.0,0.015632]
[1771692988230,0.014629,68377.0,68363.0,0.015632]
[1771692988430,0.2177929,68376.0,68363.0,0.014632]
[1771692988626,0.2177929,68375.0,68364.0,0.001]
[1771692988827,0.014629,68377.0,68364.0,0.001]
[1771692989130,0.21779352,68376.0,68364.0,0.001]
[1771692989429,0.21779352,68375.0,68364.0,0.001]
[1771692989631,0.014629,68377.0,68364.0,0.001]
[1771692989833,0.21779086,68376.0,68364.0,0.001]
[1771692990023,0.21779086,68375.0,68363.0,0.015632]
[1771692990222,0.014629,68377.0,68363.0,0.015632]
[1771692990426,0.21779202,68376.0,68363.0,0.015632]
[1771692990624,0.21779202,68375.0,68364.0,0.001]
[1771692990824,0.014629,68377.0,68364.0,0.001]
[1771692991025,0.21779202,68376.0,68364.0,0.001]
[1771692991225,0.21779202,68375.0,68363.0,0.015632]
[1771692991425,0.014629,68377.0,68363.0,0.015632]
[1771692991634,0.21779534,68376.0,68363.0,0.015632]
[1771692991826,0.014629,68377.0,68364.0,0.001]
[1771692991827,0.21779534,68375.0,68364.0,0.001]
[1771692992024,0.014629,68377.0,68364.0,0.001]
[1771692992222,0.21775416,68376.0,68364.0,0.001]
[1771692992426,0.21775416,68375.0,68364.0,0.001]
[1771692992628,0.014629,68377.0,68364.0,0.001]
[1771692992823,0.21775416,68376.0,68364.0,0.001]
[1771692993033,0.21775416,68375.0,68364.0,0.001]
[1771692993232,0.014629,68377.0,68363.0,0.014632]
[1771692993433,0.21776014,68376.0,68363.0,0.015632]
[1771692993640,0.21776014,68375.0,68363.0,0.015632]
[1771692993938,0.014629,68377.0,68364.0,0.001]
[1771692994139,0.21776057,68376.0,68364.0,0.001]
[1771692994339,0.21776057,68375.0,68363.0,0.014632]
[1771692994539,0.014629,68377.0,68363.0,0.015632]
[1771692994739,0.21776761,68376.0,68363.0,0.015632]
[1771692994939,0.21776761,68375.0,68363.0,0.014632]
[1771692995136,0.014629,68377.0,68364.0,0.001]
[1771692995332,0.21777599,68376.0,68366.0,0.014631]
[1771692995534,0.14345373,68389.0,68371.0,0.01463]
[1771692995733,0.21778411,68388.0,68373.0,0.014629]
[1771692995938,0.21778411,68387.0,68373.0,0.014629]
[1771692996133,0.21778411,68386.0,68373.0,0.014629]
[1771692996440,0.21778411,68385.0,68373.0,0.014629]
[1771692996639,0.21778411,68384.0,68373.0,0.007629]
[1771692996942,0.15131492,68397.0,68377.0,0.014629]
[1771692997137,0.21777503,68393.0,68377.0,0.014629]
[1771692997334,0.21777503,68392.0,68378.0,0.014628]
[1771692997534,0.21777503,68391.0,68378.0,0.014628]
[1771692997747,0.21777503,68390.0,68378.0,0.014628]
[1771692998042,0.21777503,68389.0,68378.0,0.014628]
[1771692998234,0.21777503,68388.0,68378.0,0.014628]
[1771692998434,0.21764294,68387.0,68378.0,0.014628]
[1771692998634,0.15131492,68397.0,68378.0,0.014628]
[1771692998838,0.21764294,68393.0,68379.0,0.014628]
[1771692999037,0.21764294,68392.0,68377.0,0.030258]
[1771692999244,0.21764294,68391.0,68377.0,0.015629]
[1771692999545,0.21764294,68390.0,68377.0,0.015629]
[1771692999743,0.21764294,68389.0,68378.0,0.001]
[1771693000045,0.21764294,68388.0,68378.0,0.001]
[1771693000243,0.15131492,68397.0,68378.0,0.014628]
[1771693000447,0.21756827,68393.0,68378.0,0.014628]
[1771693000632,0.21756827,68392.0,68378.0,0.014628]
[1771693000836,0.21756827,68391.0,68378.0,0.015628]
[1771693001037,0.21756827,68390.0,68378.0,0.015628]
[1771693001244,0.21756827,68389.0,68378.0,0.015628]
[1771693001541,0.15131492,68397.0,68379.0,0.014628]
[1771693001743,0.21754447,68393.0,68381.0,0.014628]
[1771693002040,0.58556,68402.0,68379.0,0.014628]
[1771693002041,0.21754447,68392.0,68387.0,0.00092]
[1771693002248,0.58556,68402.0,68384.0,0.014627]
[1771693002448,0.58556,68402.0,68385.0,0.014627]
[1771693002639,0.2175083,68401.0,68385.0,0.014627]
[1771693002840,0.2175083,68400.0,68385.0,0.014627]
[1771693003142,0.2175083,68399.0,68384.0,0.014627]
[1771693003343,0.2175083,68398.0,68384.0,0.014627]
[1771693003650,0.58556,68402.0,68384.0,0.014627]
[1771693003850,0.21741977,68401.0,68384.0,0.014627]
[1771693004046,0.21741977,68400.0,68383.0,0.014627]
[1771693004247,0.21741977,68399.0,68383.0,0.014627]
[1771693004553,0.58556,68402.0,68383.0,0.014627]
[1771693004845,0.2173471,68401.0,68384.0,0.001]
[1771693005044,0.2173471,68400.0,68384.0,0.001]
[1771693005344,0.58556,68402.0,68384.0,0.001]
[1771693005550,0.21728824,68401.0,68384.0,0.001]
[1771693005748,0.21728824,68400.0,68387.0,0.014626]
[1771693005951,0.15229602,68405.0,68387.0,0.014626]
[1771693006150,0.217301,68404.0,68387.0,0.014626]
[1771693006451,0.15229602,68405.0,68386.0,0.014627]
[1771693006749,0.21566081,68404.0,68383.0,0.014627]
[1771693006951,0.15229602,68405.0,68383.0,0.014627]
[1771693007152,0.1517216,68403.0,68383.0,0.014627]
[1771693007449,0.1517216,68399.0,68376.0,0.014629]
[1771693007849,0.05710884,68390.0,68375.0,0.014629]
[1771693008155,0.17809336,68390.0,68376.0,0.014629]
[1771693008448,0.17809336,68390.0,68374.0,0.014629]
[1771693009042,0.17809336,68390.0,68375.0,0.014629]
[1771693010647,0.32409878,68390.0,68374.0,0.014629]
[1771693010847,0.32409878,68390.0,68366.0,0.014631]
[1771693010848,0.14474035,68389.0,68371.0,0.01463]
[1771693011351,0.17809336,68381.0,68370.0,0.01463]
[1771693011550,0.14474035,68389.0,68370.0,0.01463]
[1771693011937,0.17809336,68380.0,68370.0,0.01463]
[1771693012141,0.17809336,68380.0,68369.0,0.01463]
[1771693013053,0.01463,68370.0,68364.0,0.014631]
[1771693013252,0.01371,68370.0,68362.0,0.24110728]
[1771693013550,0.01371,68370.0,68365.0,0.014631]
[1771693013755,0.01463,68371.0,68366.0,0.014631]
[1771693016653,0.01463,68371.0,68364.0,0.014631]
[1771693017649,0.01463,68371.0,68366.0,0.014631]
[1771693017838,0.014631,68368.0,68362.0,0.014632]
[1771693018040,0.01463,68371.0,68366.0,0.014631]
[1771693018245,0.01463,68371.0,68364.0,0.014631]
[1771693019656,0.01463,68371.0,68362.0,0.014632]
[1771693019854,0.014631,68369.0,68363.0,0.014632]
[1771693020052,0.014631,68368.0,68364.0,0.014631]
[1771693020256,0.014631,68367.0,68362.0,0.014632]
[1771693020449,0.014631,68365.0,68360.0,0.014632]
[1771693020850,0.014631,68365.0,68361.0,0.014632]
[1771693021051,0.014631,68366.0,68361.0,0.014632]
[1771693021855,0.014631,68366.0,68356.0,0.014633]
[1771693021856,0.014631,68367.0,68359.0,0.014632]
[1771693022052,0.014632,68364.0,68357.0,0.014633]
[1771693022254,0.014632,68363.0,68357.0,0.014633]
[1771693022453,0.014632,68362.0,68357.0,0.014633]
[1771693022958,0.014631,68366.0,68353.0,0.014634]
[1771693023155,0.014633,68358.0,68353.0,0.014634]
[1771693023654,0.014632,68363.0,68356.0,0.014633]
[1771693023853,0.014632,68363.0,68353.0,0.014634]
[1771693023854,0.014632,68362.0,68357.0,0.014633]
[1771693025561,0.014632,68363.0,68354.0,0.014634]
[1771693025562,0.014633,68359.0,68354.0,0.014634]
[1771693025758,0.014633,68359.0,68353.0,0.014634]
[1771693025953,0.014633,68359.0,68352.0,0.014634]
[1771693026153,0.014633,68359.0,68354.0,0.014634]
[1771693026359,0.014633,68359.0,68353.0,0.014634]
[1771693027264,0.014633,68359.0,68354.0,0.014634]
[1771693030171,0.014632,68360.0,68355.0,0.014633]
[1771693030968,0.15848195,68375.0,68352.0,0.014634]
[1771693031173,0.014631,68366.0,68361.0,0.014632]
[1771693031367,0.01463,68370.0,68361.0,0.014632]
[1771693031670,0.014631,68365.0,68359.0,0.014632]
[1771693033572,0.014631,68365.0,68360.0,0.014632]
[1771693033772,0.014632,68364.0,68359.0,0.014632]
[1771693034768,0.014632,68363.0,68358.0,0.014633]
[1771693035472,0.014632,68362.0,68358.0,0.014633]
[1771693036674,0.014632,68361.0,68356.0,0.014633]
[1771693037379,0.014632,68361.0,68356.0,0.029266]
[1771693037780,0.014632,68361.0,68356.0,0.014633]
[1771693038082,0.014632,68361.0,68356.0,0.029266]
[1771693038278,0.014632,68361.0,68356.0,0.014633]
[1771693038580,0.014632,68361.0,68356.0,0.029266]
[1771693039385,0.014632,68362.0,68357.0,0.014633]
[1771693042878,0.014634,68355.0,68349.0,0.014635]
[1771693043079,0.014633,68357.0,68351.0,0.014634]
[1771693043272,0.014633,68357.0,68350.0,0.014634]
[1771693043469,0.014634,68355.0,68350.0,0.014634]
[1771693043976,0.014634,68355.0,68349.0,0.014635]
[1771693044180,0.014634,68354.0,68349.0,0.029269]
[1771693044477,0.014634,68354.0,68350.0,0.014634]
[1771693044983,0.014634,68353.0,68348.0,0.014635]
[1771693045186,0.14957591,68369.0,68347.0,0.014635]
[1771693045187,0.014633,68359.0,68354.0,0.014634]
[1771693045572,0.014633,68358.0,68353.0,0.014634]
[1771693046683,0.014632,68361.0,68354.0,0.014634]
[1771693047583,0.014633,68359.0,68354.0,0.014634]
[1771693048183,0.014633,68359.0,68354.0,0.015634]
[1771693048684,0.014633,68359.0,68354.0,0.014634]
[1771693053481,0.014631,68365.0,68360.0,0.014632]
[1771693053677,0.014631,68364.0,68359.0,0.014633]
[1771693054278,0.014632,68363.0,68359.0,0.014633]
[1771693054473,0.014631,68366.0,68359.0,0.014633]
[1771693054677,0.014632,68364.0,68359.0,0.014633]
[1771693054979,0.014632,68363.0,68359.0,0.014633]
[1771693056387,0.014631,68366.0,68361.0,0.014632]
[1771693056586,0.014631,68365.0,68360.0,0.014632]
[1771693057687,0.014631,68364.0,68360.0,0.014632]
[1771693058690,0.014631,68364.0,68359.0,0.014632]
[1771693059088,0.014631,68364.0,68358.0,0.014633]
[1771693060587,0.014632,68363.0,68358.0,0.014633]
[1771693061384,0.014632,68361.0,68355.0,0.014633]
[1771693061590,0.014632,68360.0,68355.0,0.014633]
[1771693062187,0.014632,68362.0,68356.0,0.014633]
[1771693062780,0.014632,68362.0,68357.0,0.014633]
[1771693065890,0.014632,68361.0,68357.0,0.014633]
[1771693070595,0.014631,68367.0,68357.0,0.014633]
[1771693070794,0.014632,68362.0,68358.0,0.014633]
[1771693073996,0.014632,68362.0,68357.0,0.014633]
[1771693074898,0.014632,68361.0,68356.0,0.014633]
[1771693075096,0.014632,68360.0,68356.0,0.014633]
[1771693075799,0.014632,68361.0,68356.0,0.014633]
[1771693075988,0.014632,68361.0,68357.0,0.014633]
[1771693076193,0.014632,68361.0,68356.0,0.014633]
[1771693077406,0.014632,68361.0,68357.0,0.014633]
[1771693077600,0.014632,68362.0,68357.0,0.014633]
[1771693090207,0.014632,68361.0,68357.0,0.014633]
[1771693090906,0.014632,68362.0,68357.0,0.014633]
[1771693091205,0.014632,68361.0,68357.0,0.014633]
[1771693091400,0.014632,68361.0,68350.0,0.24795987]
[1771693091605,0.014633,68357.0,68348.0,0.014635]
[1771693092001,0.014633,68357.0,68352.0,0.014634]
[1771693092704,0.014633,68357.0,68353.0,0.014634]
[1771693093206,0.014633,68357.0,68352.0,0.014634]
[1771693094099,0.01463,68369.0,68346.0,0.014635]
[1771693094306,0.014634,68355.0,68349.0,0.014635]
[1771693094803,0.014633,68359.0,68349.0,0.014635]
[1771693094804,0.014634,68354.0,68349.0,0.014635]
[1771693095410,0.014634,68354.0,68350.0,0.014634]
[1771693096207,0.014633,68355.0,68350.0,0.014634]
[1771693101311,0.014633,68357.0,68348.0,0.014635]
[1771693101607,0.014634,68355.0,68350.0,0.014634]
[1771693101800,0.014633,68356.0,68350.0,0.014634]
[1771693102208,0.014634,68355.0,68350.0,0.014634]
[1771693102613,0.014634,68354.0,68350.0,0.014634]
[1771693103209,0.014633,68355.0,68350.0,0.014634]
[1771693103909,0.014634,68354.0,68350.0,0.014634]
[1771693104111,0.014633,68355.0,68350.0,0.014634]
[1771693104410,0.014632,68362.0,68353.0,0.014634]
[1771693105214,0.014633,68357.0,68352.0,0.014634]
[1771693109213,0.029266,68357.0,68352.0,0.014634]
[1771693109408,0.014633,68357.0,68352.0,0.014634]
[1771693112611,0.014633,68357.0,68351.0,0.014634]
[1771693113318,0.014633,68356.0,68351.0,0.014634]
[1771693115321,0.014634,68355.0,68350.0,0.014634]
[1771693115519,0.014634,68355.0,68349.0,0.014634]
[1771693115720,0.014633,68356.0,68351.0,0.014634]
[1771693117424,0.014633,68356.0,68351.0,0.029268]
[1771693117621,0.014633,68356.0,68351.0,0.014634]
[1771693118422,0.014633,68355.0,68350.0,0.014634]
[1771693118616,0.014633,68355.0,68351.0,0.014634]
[1771693119322,0.014633,68356.0,68351.0,0.014634]
[1771693119818,0.014632,68361.0,68351.0,0.014634]
[1771693120026,0.014632,68361.0,68354.0,0.014633]
[1771693120325,0.13692674,68380.0,68365.0,0.014631]
[1771693120523,0.01463,68370.0,68364.0,0.014631]
[1771693120924,0.01463,68370.0,68365.0,0.014631]
[1771693122327,0.01563,68370.0,68365.0,0.014631]
[1771693123320,0.01563,68370.0,68363.0,0.014632]
[1771693124719,0.01463,68370.0,68363.0,0.014632]
[1771693125228,0.01463,68370.0,68363.0,0.029264]
[1771693127125,0.1287791,68372.0,68349.0,0.23789766]
[1771693127323,0.1287791,68372.0,68352.0,0.014634]
[1771693127525,0.1287791,68372.0,68356.0,0.014633]
[1771693128925,0.1287791,68372.0,68354.0,0.014634]
[1771693128926,0.1287791,68372.0,68355.0,0.014633]
[1771693129922,0.1287791,68372.0,68359.0,0.014632]
[1771693131323,0.1287791,68372.0,68357.0,0.014633]
[1771693131724,0.1287791,68372.0,68359.0,0.001]
[1771693131918,0.17818884,68370.0,68359.0,0.001]
[1771693132818,0.17818884,68380.0,68359.0,0.001]
[1771693133030,0.17818884,68370.0,68359.0,0.001]
[1771693133723,0.17818884,68370.0,68357.0,0.029266]
[1771693134228,0.17818884,68370.0,68359.0,0.001]
[1771693134728,0.17818884,68370.0,68357.0,0.029266]
[1771693135028,0.17818884,68370.0,68357.0,0.015633]
[1771693135422,0.17818884,68370.0,68359.0,0.001]
[1771693136925,0.17818884,68370.0,68358.0,0.014633]
[1771693137829,0.17818884,68370.0,68359.0,0.001]
[1771693138027,0.17818884,68370.0,68358.0,0.014633]
[1771693138230,0.17818884,68370.0,68358.0,0.015633]
[1771693141038,0.17818884,68370.0,68360.0,0.014632]
[1771693143531,0.17818884,68370.0,68360.0,0.015632]
[1771693144235,0.17818884,68370.0,68360.0,0.001]
[1771693144538,0.17818884,68370.0,68357.0,0.014633]
[1771693145936,0.2997983,68370.0,68354.0,0.014634]
[1771693146135,0.12160946,68369.0,68351.0,0.014634]
[1771693146330,0.014632,68361.0,68354.0,0.014634]
[1771693146637,0.014632,68361.0,68355.0,0.014633]
[1771693147729,0.014632,68361.0,68356.0,0.014633]
[1771693150039,0.015632,68361.0,68356.0,0.014633]
[1771693150438,0.001,68361.0,68357.0,0.014633]
[1771693151039,0.0002,68361.0,68357.0,0.014633]
[1771693151338,0.01383196,68362.0,68357.0,0.014633]
[1771693151537,0.014631,68365.0,68358.0,0.014633]
[1771693151937,0.014631,68365.0,68357.0,0.014633]
[1771693151938,0.014632,68363.0,68355.0,0.014633]
[1771693152336,0.001,68361.0,68357.0,0.014633]
[1771693152940,0.014632,68363.0,68357.0,0.014633]
[1771693153641,0.001,68361.0,68357.0,0.014633]
[1771693154041,0.015632,68363.0,68357.0,0.014633]
[1771693155741,0.014632,68363.0,68357.0,0.014633]
[1771693159246,0.014632,68363.0,68357.0,0.029266]
[1771693162044,0.014632,68363.0,68358.0,0.014633]
[1771693169449,0.014631,68365.0,68359.0,0.014632]
[1771693170552,0.014632,68364.0,68359.0,0.014632]
[1771693170958,0.01463,68369.0,68359.0,0.014632]
[1771693171150,0.01463,68372.0,68366.0,0.014631]
[1771693171855,0.01463,68372.0,68364.0,0.014631]
[1771693172048,0.014629,68377.0,68370.0,0.01463]
[1771693172354,0.01463,68373.0,68368.0,0.01463]
[1771693172558,0.014631,68368.0,68363.0,0.014632]
[1771693172752,0.014631,68367.0,68362.0,0.014632]
[1771693173653,0.014631,68368.0,68362.0,0.014632]
[1771693175552,0.014631,68366.0,68358.0,0.014633]
[1771693175759,0.014631,68366.0,68360.0,0.014632]
[1771693176058,0.014631,68366.0,68360.0,0.015472]
[1771693176356,0.014631,68366.0,68360.0,0.014632]
[1771693178159,0.014631,68366.0,68360.0,0.029264]
[1771693179063,0.014631,68366.0,68361.0,0.014632]
[1771693180063,0.014631,68367.0,68361.0,0.014632]
[1771693182566,0.01463,68370.0,68360.0,0.014632]
[1771693182766,0.014631,68369.0,68363.0,0.014632]
[1771693183466,0.014631,68368.0,68363.0,0.014632]
[1771693183667,0.014631,68368.0,68361.0,0.014632]
[1771693184556,0.014631,68368.0,68363.0,0.014632]
[1771693185469,0.014631,68368.0,68363.0,0.029264]
[1771693186173,0.014631,68368.0,68364.0,0.014631]
[1771693186971,0.015631,68368.0,68364.0,0.014631]
[1771693187773,0.014631,68368.0,68364.0,0.014631]
[1771693187968,0.015631,68368.0,68364.0,0.014631]
[1771693192977,0.000998,68368.0,68364.0,0.014631]
[1771693199481,0.01463,68370.0,68364.0,0.014631]
[1771693199782,0.014629,68374.0,68369.0,0.01463]
[1771693200182,0.01463,68373.0,68368.0,0.014631]
[1771693200587,0.014627,68385.0,68364.0,0.014631]
[1771693200790,0.014628,68379.0,68364.0,0.014631]
[1771693201086,0.01463,68369.0,68364.0,0.014631]
[1771693201486,0.01463,68369.0,68365.0,0.014631]
[1771693201879,0.21557835,68368.0,68365.0,0.014631]
[1771693202080,0.01463,68373.0,68367.0,0.014631]
[1771693202278,0.21691614,68372.0,68367.0,0.014631]
[1771693202480,0.21691614,68371.0,68367.0,0.014631]
[1771693202680,0.21691614,68370.0,68367.0,0.014631]
[1771693202882,0.21691614,68369.0,68367.0,0.014631]
[1771693203083,0.21691614,68368.0,68367.0,0.014631]
[1771693203390,0.21691614,68371.0,68367.0,0.014631]
[1771693204692,0.21691614,68371.0,68365.0,0.014631]
[1771693205091,0.21691614,68371.0,68366.0,0.014631]
[1771693206493,0.23154614,68371.0,68366.0,0.014631]
[1771693206791,0.21691614,68370.0,68366.0,0.014631]
[1771693208787,0.23154614,68370.0,68356.0,0.22681937]
[1771693209095,0.23154614,68370.0,68356.0,0.014633]
[1771693209096,0.014632,68361.0,68356.0,0.014633]
[1771693209386,0.21655922,68360.0,68353.0,0.014634]
[1771693209587,0.014631,68366.0,68359.0,0.014632]
[1771693209588,0.014631,68364.0,68359.0,0.014632]
[1771693209895,0.23119204,68363.0,68356.0,0.014633]
[1771693210087,0.23119204,68362.0,68353.0,0.014634]
[1771693210392,0.21656004,68361.0,68357.0,0.014633]
[1771693210587,0.21656004,68360.0,68357.0,0.014633]
[1771693210794,0.014632,68362.0,68355.0,0.014633]
[1771693211092,0.21910162,68361.0,68357.0,0.014633]
[1771693211392,0.21907887,68360.0,68355.0,0.014633]
[1771693211592,0.014632,68362.0,68355.0,0.014633]
[1771693212596,0.014632,68362.0,68357.0,0.014633]
[1771693213491,0.029264,68362.0,68356.0,0.014633]
[1771693213691,0.014633,68355.0,68348.0,0.014635]
[1771693213891,0.014634,68353.0,68348.0,0.014635]
[1771693214192,0.014635,68347.0,68340.0,0.014636]
[1771693214398,0.0717298,68360.0,68345.0,0.014635]
[1771693214590,0.014634,68353.0,68345.0,0.014635]
[1771693214792,0.014634,68351.0,68346.0,0.014635]
[1771693215096,0.014635,68348.0,68343.0,0.014636]
[1771693215292,0.014634,68353.0,68347.0,0.014635]
[1771693215886,0.014634,68352.0,68347.0,0.014635]
[1771693216289,0.014634,68353.0,68347.0,0.014635]
[1771693216794,0.014634,68352.0,68347.0,0.014635]
[1771693217194,0.014634,68354.0,68347.0,0.014635]
[1771693217397,0.014634,68353.0,68347.0,0.014635]
[1771693217599,0.014634,68354.0,68347.0,0.014635]
[1771693218093,0.014634,68352.0,68348.0,0.00092]
[1771693218293,0.014634,68352.0,68347.0,0.014635]
[1771693218294,0.014633,68356.0,68347.0,0.014635]
[1771693218595,0.01463,68370.0,68364.0,0.014631]
[1771693218801,0.014629,68374.0,68364.0,0.014631]
[1771693218995,0.01463,68370.0,68364.0,0.014631]
[1771693219201,0.01463,68373.0,68364.0,0.014631]
[1771693220397,0.01463,68370.0,68364.0,0.014631]
[1771693220903,0.01463,68369.0,68364.0,0.015631]
[1771693221799,0.0717258,68380.0,68364.0,0.015631]
[1771693221998,0.01463,68372.0,68364.0,0.015631]
[1771693222204,0.01463,68372.0,68366.0,0.014631]
[1771693222901,0.01463,68373.0,68367.0,0.014631]
[1771693223095,0.014629,68374.0,68367.0,0.014631]
[1771693223293,0.13289475,68377.0,68345.0,0.21989825]
[1771693223494,0.014633,68357.0,68352.0,0.014634]
[1771693223700,0.014634,68355.0,68346.0,0.014635]
[1771693223894,0.014633,68357.0,68350.0,0.014634]
[1771693224218,0.014633,68355.0,68349.0,0.014635]
[1771693224503,0.014634,68354.0,68349.0,0.014635]
[1771693225397,0.014634,68353.0,68345.0,0.21989825]
[1771693225599,0.014634,68354.0,68348.0,0.014635]
[1771693225900,0.014632,68362.0,68352.0,0.014634]
[1771693226104,0.014633,68357.0,68351.0,0.014634]
[1771693226305,0.014633,68356.0,68351.0,0.014634]
[1771693226699,0.014633,68356.0,68350.0,0.014634]
[1771693228007,0.014633,68355.0,68350.0,0.014634]
[1771693229103,0.014633,68355.0,68349.0,0.014635]
[1771693231308,0.014633,68355.0,68350.0,0.014634]
[1771693232406,0.014633,68356.0,68350.0,0.014634]
[1771693233510,0.014633,68356.0,68350.0,0.029268]
[1771693233705,0.014633,68356.0,68350.0,0.014634]
[1771693234707,0.014633,68359.0,68353.0,0.014634]
[1771693234912,0.014632,68361.0,68355.0,0.014633]
[1771693235207,0.014632,68360.0,68355.0,0.014633]
[1771693235406,0.014632,68360.0,68354.0,0.014634]
[1771693236311,0.014633,68358.0,68352.0,0.014634]
[1771693236511,0.014633,68357.0,68351.0,0.014634]
[1771693236705,0.014633,68357.0,68351.0,0.029268]
[1771693237112,0.014634,68355.0,68349.0,0.014634]
[1771693238104,0.014634,68355.0,68349.0,0.029269]
[1771693238505,0.014634,68355.0,68350.0,0.014634]
[1771693240116,0.029268,68355.0,68349.0,0.014634]
[1771693240321,0.014634,68355.0,68349.0,0.014634]
[1771693240617,0.014634,68355.0,68350.0,0.014634]
[1771693242313,0.014633,68357.0,68345.0,0.23453325]
[1771693242314,0.014633,68358.0,68352.0,0.014634]
[1771693242520,0.014633,68360.0,68354.0,0.014634]
[1771693242820,0.014633,68359.0,68354.0,0.014634]
[1771693243019,0.014633,68358.0,68352.0,0.029268]
[1771693244019,0.014633,68358.0,68353.0,0.014634]
[1771693247919,0.014633,68360.0,68353.0,0.014634]
[1771693248117,0.014632,68363.0,68358.0,0.014633]
[1771693248418,0.014632,68362.0,68358.0,0.014633]
[1771693248611,0.014632,68363.0,68359.0,0.014633]
[1771693248813,0.014632,68364.0,68359.0,0.014633]
[1771693249128,0.014632,68363.0,68359.0,0.014633]
[1771693250517,0.014632,68363.0,68358.0,0.014633]
[1771693250928,0.029264,68363.0,68358.0,0.014633]
[1771693251422,0.014632,68363.0,68358.0,0.014633]
[1771693251619,0.014632,68363.0,68359.0,0.014633]
[1771693253321,0.014631,68367.0,68352.0,0.2147126]
[1771693253322,0.014632,68360.0,68355.0,0.014633]
[1771693254925,0.014633,68357.0,68353.0,0.014634]
[1771693255118,0.014633,68358.0,68354.0,0.014634]
[1771693256919,0.014633,68358.0,68353.0,0.014634]
[1771693258124,0.014633,68358.0,68354.0,0.014634]
[1771693258328,0.014632,68362.0,68356.0,0.014633]
[1771693259030,0.014632,68361.0,68355.0,0.014633]
[1771693259728,0.014632,68362.0,68355.0,0.014633]
[1771693259729,0.014632,68360.0,68355.0,0.014633]
[1771693261429,0.029265,68360.0,68355.0,0.014633]
[1771693261628,0.014633,68359.0,68355.0,0.014633]
[1771693264919,0.014632,68363.0,68358.0,0.014633]
[1771693265833,0.014632,68363.0,68359.0,0.014633]
[1771693266030,0.01463,68372.0,68366.0,0.014631]
[1771693266231,0.01463,68370.0,68363.0,0.014632]
[1771693266530,0.014629,68375.0,68370.0,0.01463]
[1771693266733,0.014628,68379.0,68366.0,0.014631]
[1771693267023,0.01463,68372.0,68366.0,0.014631]
[1771693267226,0.014631,68368.0,68356.0,0.014633]
[1771693267426,0.01463,68370.0,68362.0,0.014632]
[1771693267826,0.014631,68369.0,68364.0,0.014631]
[1771693268230,0.01463,68372.0,68364.0,0.014631]
[1771693268231,0.01463,68370.0,68365.0,0.014631]
[1771693270634,0.30273011,68380.0,68366.0,0.014631]
[1771693270837,0.17820557,68380.0,68367.0,0.014631]
[1771693271131,0.17820557,68380.0,68366.0,0.014631]
[1771693272134,0.17820557,68380.0,68367.0,0.014631]
[1771693272633,0.17820557,68380.0,68370.0,0.01463]
[1771693272838,0.12271008,68388.0,68370.0,0.01463]
[1771693273029,0.12271008,68388.0,68370.0,0.02926]
[1771693273228,0.12271008,68388.0,68371.0,0.01463]
[1771693274522,0.12271008,68388.0,68371.0,0.001]
[1771693275632,0.12271008,68388.0,68371.0,0.01563]
[1771693275930,0.12271008,68388.0,68372.0,0.01463]
[1771693276432,0.12271008,68388.0,68374.0,0.014629]
[1771693277735,0.12271008,68388.0,68374.0,0.015629]
[1771693278136,0.12271008,68388.0,68374.0,0.030258]
[1771693278336,0.12271008,68388.0,68374.0,0.015629]